[Event "*** Titled Tuesday Blitz"]
[Site "Chess.com"]
[Date "2020.04.14"]
[Round "9"]
[White "Artem_Sadovsky"]
[Black "VinzentSpitzl"]
[Result "0-1"]
[WhiteElo "2599"]
[BlackElo "2396"]
[TimeControl "180+1"]
[EndTime "11:42:54 PDT"]
[Termination "VinzentSpitzl won on time"]

1. Nf3 {[%clk 0:03:00.5]} 1... d5 {[%clk 0:02:59]} 2. g3 {[%clk 0:03:01.4]} 2...
Nf6 {[%clk 0:02:58.8]} 3. Bg2 {[%clk 0:03:02.3]} 3... e6 {[%clk 0:02:58.3]} 4.
O-O {[%clk 0:03:03.2]} 4... Be7 {[%clk 0:02:58.9]} 5. c4 {[%clk 0:03:04.1]} 5...
O-O {[%clk 0:02:59.3]} 6. b3 {[%clk 0:03:04.7]} 6... c5 {[%clk 0:02:59.7]} 7.
Bb2 {[%clk 0:03:05.3]} 7... Nc6 {[%clk 0:02:59.8]} 8. cxd5 {[%clk 0:03:05.7]}
8... Nxd5 {[%clk 0:02:58.9]} 9. d4 {[%clk 0:03:05.9]} 9... cxd4 {[%clk
0:02:56.3]} 10. Nxd4 {[%clk 0:03:06]} 10... Bd7 {[%clk 0:02:56.6]} 11. Nc3
{[%clk 0:03:01.2]} 11... Nxc3 {[%clk 0:02:49.2]} 12. Bxc3 {[%clk 0:03:02.1]}
12... Rc8 {[%clk 0:02:42]} 13. e3 {[%clk 0:02:49]} 13... Nxd4 {[%clk 0:02:27]}
14. Bxd4 {[%clk 0:02:49.9]} 14... b6 {[%clk 0:02:03.6]} 15. Rc1 {[%clk
0:02:45.6]} 15... Bb5 {[%clk 0:02:00.8]} 16. Qg4 {[%clk 0:02:34.1]} 16... g6
{[%clk 0:01:44.2]} 17. Rfd1 {[%clk 0:02:28]} 17... Rxc1 {[%clk 0:01:42.6]} 18.
Rxc1 {[%clk 0:02:28.9]} 18... Qd7 {[%clk 0:01:36.1]} 19. a4 {[%clk 0:02:24.2]}
19... Ba6 {[%clk 0:01:32.9]} 20. Bc6 {[%clk 0:02:23.2]} 20... Qd6 {[%clk
0:01:21.5]} 21. Qe4 {[%clk 0:02:03.7]} 21... f5 {[%clk 0:01:04]} 22. Qe5 {[%clk
0:01:57.5]} 22... Qxe5 {[%clk 0:01:03.9]} 23. Bxe5 {[%clk 0:01:58.4]} 23... Rc8
{[%clk 0:01:02.6]} 24. Rc2 {[%clk 0:01:20.4]} 24... Bb7 {[%clk 0:00:43.4]} 25.
Bxb7 {[%clk 0:01:10.4]} 25... Rxc2 {[%clk 0:00:43.2]} 26. Bb8 {[%clk 0:01:11.3]}
26... a5 {[%clk 0:00:40.9]} 27. Ba6 {[%clk 0:01:11.6]} 27... Kf7 {[%clk
0:00:37.6]} 28. Bc4 {[%clk 0:01:12]} 28... Bc5 {[%clk 0:00:37.6]} 29. h4 {[%clk
0:01:09.9]} 29... Kf6 {[%clk 0:00:36.5]} 30. Bf4 {[%clk 0:01:08]} 30... e5
{[%clk 0:00:32.5]} 31. Bg5+ {[%clk 0:01:08.5]} 31... Kg7 {[%clk 0:00:32.8]} 32.
Kf1 {[%clk 0:01:07.3]} 32... h6 {[%clk 0:00:27.7]} 33. Bd8 {[%clk 0:01:07.4]}
33... Rd2 {[%clk 0:00:26.3]} 34. Bc7 {[%clk 0:01:07.7]} 34... Kf6 {[%clk
0:00:24.5]} 35. Ke1 {[%clk 0:01:08.2]} 35... Rd7 {[%clk 0:00:23.8]} 36. Bb8
{[%clk 0:01:03.1]} 36... Rb7 {[%clk 0:00:22]} 37. Ke2 {[%clk 0:00:52.9]} 37...
Rxb8 {[%clk 0:00:21.7]} 38. f4 {[%clk 0:00:53.4]} 38... exf4 {[%clk 0:00:20.9]}
0-1

[Event "*** Titled Tuesday Blitz"]
[Site "Chess.com"]
[Date "2020.04.14"]
[Round "9"]
[White "gui_borba"]
[Black "politeplayer"]
[Result "1-0"]
[WhiteElo "2335"]
[BlackElo "2179"]
[TimeControl "180+1"]
[EndTime "11:42:54 PDT"]
[Termination "gui_borba won on time"]

1. d4 {[%clk 0:03:00.9]} 1... e6 {[%clk 0:02:57.4]} 2. Bf4 {[%clk 0:03:01.4]}
2... f5 {[%clk 0:02:55]} 3. e3 {[%clk 0:02:59.4]} 3... Nf6 {[%clk 0:02:54.1]} 4.
c4 {[%clk 0:02:58.1]} 4... c5 {[%clk 0:02:54.4]} 5. Nc3 {[%clk 0:02:58.6]} 5...
cxd4 {[%clk 0:02:53.2]} 6. exd4 {[%clk 0:02:59.5]} 6... Bb4 {[%clk 0:02:52.4]}
7. Nf3 {[%clk 0:02:58]} 7... Qa5 {[%clk 0:02:52]} 8. Bd2 {[%clk 0:02:50.3]} 8...
d5 {[%clk 0:02:41.2]} 9. c5 {[%clk 0:02:48.6]} 9... Ne4 {[%clk 0:02:36.7]} 10.
Nxe4 {[%clk 0:02:45.5]} 10... fxe4 {[%clk 0:02:35]} 11. Ne5 {[%clk 0:02:46]}
11... O-O {[%clk 0:02:23.2]} 12. f3 {[%clk 0:02:35.2]} 12... e3 {[%clk
0:02:08.1]} 13. Bxb4 {[%clk 0:02:19.3]} 13... Qxb4+ {[%clk 0:02:08.2]} 14. Ke2
{[%clk 0:02:19.9]} 14... Qxb2+ {[%clk 0:02:02.8]} 15. Kxe3 {[%clk 0:02:19.1]}
15... Nc6 {[%clk 0:01:55.3]} 16. Nxc6 {[%clk 0:02:13.1]} 16... bxc6 {[%clk
0:01:53.7]} 17. f4 {[%clk 0:02:00.6]} 17... e5 {[%clk 0:01:51.1]} 18. dxe5
{[%clk 0:01:58.2]} 18... Bg4 {[%clk 0:01:14]} 19. Qd4 {[%clk 0:01:44.8]} 19...
Qxd4+ {[%clk 0:01:03.5]} 20. Kxd4 {[%clk 0:01:45.7]} 20... Rxf4+ {[%clk
0:01:03.2]} 21. Kc3 {[%clk 0:01:44.8]} 21... Re4 {[%clk 0:00:59.2]} 22. Bd3
{[%clk 0:01:43.6]} 22... Rxe5 {[%clk 0:00:57.6]} 23. Rhe1 {[%clk 0:01:42.5]}
23... Rae8 {[%clk 0:00:55.9]} 24. Rxe5 {[%clk 0:01:40.9]} 24... Rxe5 {[%clk
0:00:55.5]} 25. Kd4 {[%clk 0:01:39.8]} 25... Re7 {[%clk 0:00:43.6]} 26. Rb1
{[%clk 0:01:39.8]} 26... Kf7 {[%clk 0:00:38.8]} 27. h3 {[%clk 0:01:37.4]} 27...
Be2 {[%clk 0:00:31.9]} 28. Bc2 {[%clk 0:01:29.2]} 28... Bc4 {[%clk 0:00:26.4]}
29. a3 {[%clk 0:01:25.5]} 29... Re2 {[%clk 0:00:23.7]} 30. Rb7+ {[%clk
0:01:23.6]} 30... Kf6 {[%clk 0:00:21.9]} 31. Bxh7 {[%clk 0:01:22.3]} 31... Rxg2
{[%clk 0:00:19.7]} 32. Rxa7 {[%clk 0:01:19.1]} 32... Rg3 {[%clk 0:00:18.2]} 33.
Rc7 {[%clk 0:01:13.1]} 33... Bb5 {[%clk 0:00:16.6]} 34. h4 {[%clk 0:01:08.4]}
34... Rxa3 {[%clk 0:00:16.2]} 35. h5 {[%clk 0:01:05.3]} 35... Ra4+ {[%clk
0:00:15.8]} 36. Ke3 {[%clk 0:01:05.1]} 36... Rc4 {[%clk 0:00:14.3]} 37. Bg6
{[%clk 0:00:56.4]} 37... Rxc5 {[%clk 0:00:13.9]} 38. Rf7+ {[%clk 0:00:56.9]}
38... Kg5 {[%clk 0:00:14.1]} 39. Rxg7 {[%clk 0:00:57.8]} 39... Rc3+ {[%clk
0:00:12.4]} 40. Kd2 {[%clk 0:00:57.7]} 40... Rg3 {[%clk 0:00:09.7]} 41. Rg8
{[%clk 0:00:56.8]} 41... Kf4 {[%clk 0:00:06.9]} 42. h6 {[%clk 0:00:54.8]} 42...
Rg2+ {[%clk 0:00:06.6]} 43. Kc1 {[%clk 0:00:53.4]} 43... Rg1+ {[%clk 0:00:05.2]}
44. Kb2 {[%clk 0:00:52.9]} 44... Rg2+ {[%clk 0:00:05.1]} 45. Ka3 {[%clk
0:00:53.1]} 45... c5 {[%clk 0:00:04.8]} 46. h7 {[%clk 0:00:53]} 46... Bc4 {[%clk
0:00:05]} 47. Bb1 {[%clk 0:00:49.8]} 1-0

[Event "*** Titled Tuesday Blitz"]
[Site "Chess.com"]
[Date "2020.04.14"]
[Round "9"]
[White "elohunter1999"]
[Black "Lysiak_Poltorak"]
[Result "0-1"]
[WhiteElo "2465"]
[BlackElo "2280"]
[TimeControl "180+1"]
[EndTime "11:42:56 PDT"]
[Termination "Lysiak_Poltorak won by resignation"]

1. e4 {[%clk 0:03:00.9]} 1... c6 {[%clk 0:02:59.5]} 2. d4 {[%clk 0:03:00.7]}
2... d5 {[%clk 0:02:59.3]} 3. e5 {[%clk 0:03:01.2]} 3... Bf5 {[%clk 0:02:59]} 4.
Nf3 {[%clk 0:03:01.2]} 4... e6 {[%clk 0:02:58.1]} 5. Be2 {[%clk 0:03:01.7]} 5...
Nd7 {[%clk 0:02:57.8]} 6. O-O {[%clk 0:03:02.6]} 6... h6 {[%clk 0:02:53.1]} 7.
Nbd2 {[%clk 0:03:02.6]} 7... Ne7 {[%clk 0:02:52.9]} 8. Nb3 {[%clk 0:03:02.9]}
8... Qc7 {[%clk 0:02:53]} 9. a4 {[%clk 0:03:01.8]} 9... g5 {[%clk 0:02:51.6]}
10. Ne1 {[%clk 0:03:01.5]} 10... Bg7 {[%clk 0:02:50.2]} 11. Nd3 {[%clk
0:03:01.2]} 11... f6 {[%clk 0:02:47.9]} 12. exf6 {[%clk 0:02:57.4]} 12... Bxf6
{[%clk 0:02:47.9]} 13. f4 {[%clk 0:02:53]} 13... O-O-O {[%clk 0:02:34.5]} 14. a5
{[%clk 0:02:50.7]} 14... Rdg8 {[%clk 0:02:28.9]} 15. Ne5 {[%clk 0:02:43.6]}
15... gxf4 {[%clk 0:02:07.7]} 16. Nxd7 {[%clk 0:02:42.4]} 16... Kxd7 {[%clk
0:02:05.9]} 17. Nc5+ {[%clk 0:02:41]} 17... Kc8 {[%clk 0:02:05.2]} 18. Bxf4
{[%clk 0:02:41.9]} 18... e5 {[%clk 0:02:03.5]} 19. Bg3 {[%clk 0:02:28.6]} 19...
h5 {[%clk 0:01:59.5]} 20. Rxf5 {[%clk 0:02:16]} 20... Nxf5 {[%clk 0:01:54.1]}
21. Qf1 {[%clk 0:02:05]} 21... Nxg3 {[%clk 0:01:44.9]} 22. hxg3 {[%clk
0:02:05.9]} 22... Be7 {[%clk 0:00:58.7]} 23. Qf5+ {[%clk 0:02:01.9]} 23... Kb8
{[%clk 0:00:55.8]} 24. Nd7+ {[%clk 0:02:00.8]} 24... Ka8 {[%clk 0:00:54.7]} 25.
Nxe5 {[%clk 0:02:00.9]} 25... Rxg3 {[%clk 0:00:42]} 26. a6 {[%clk 0:01:59.7]}
26... Rhg8 {[%clk 0:00:27.1]} 27. axb7+ {[%clk 0:01:52.3]} 27... Qxb7 {[%clk
0:00:26.4]} 28. Bf3 {[%clk 0:01:53.2]} 28... Qxb2 {[%clk 0:00:20.2]} 29. Rd1
{[%clk 0:01:22]} 29... Qb7 {[%clk 0:00:15.4]} 30. c4 {[%clk 0:01:13.6]} 30...
Qb3 {[%clk 0:00:09.5]} 31. cxd5 {[%clk 0:01:02.6]} 31... Rxg2+ {[%clk
0:00:09.4]} 32. Bxg2 {[%clk 0:01:01.2]} 32... Qxd1+ {[%clk 0:00:09.6]} 33. Kh2
{[%clk 0:00:56.7]} 33... Qe2 {[%clk 0:00:09]} 34. Qf3 {[%clk 0:00:56.8]} 34...
Rxg2+ {[%clk 0:00:05.4]} 35. Qxg2 {[%clk 0:00:56.6]} 35... Qxg2+ {[%clk
0:00:06.3]} 36. Kxg2 {[%clk 0:00:57.5]} 36... cxd5 {[%clk 0:00:06.6]} 37. Nc6
{[%clk 0:00:55.7]} 37... Bd6 {[%clk 0:00:06.7]} 38. Kh3 {[%clk 0:00:54.6]} 38...
Kb7 {[%clk 0:00:06.7]} 39. Nd8+ {[%clk 0:00:54.2]} 39... Kb6 {[%clk 0:00:07]}
40. Nf7 {[%clk 0:00:53.9]} 40... Bc7 {[%clk 0:00:07.2]} 41. Ng5 {[%clk
0:00:50.4]} 41... a5 {[%clk 0:00:07.5]} 42. Nf3 {[%clk 0:00:50.4]} 42... a4
{[%clk 0:00:07.8]} 43. Nd2 {[%clk 0:00:50.9]} 43... Kb5 {[%clk 0:00:07.4]} 44.
Nb1 {[%clk 0:00:50.6]} 44... Kc4 {[%clk 0:00:07.2]} 45. Kh4 {[%clk 0:00:50.3]}
45... Kxd4 {[%clk 0:00:06.5]} 46. Kxh5 {[%clk 0:00:50.9]} 46... Ba5 {[%clk
0:00:05.2]} 47. Kg4 {[%clk 0:00:50.7]} 47... Bb4 {[%clk 0:00:05.3]} 48. Kf3
{[%clk 0:00:48.8]} 48... a3 {[%clk 0:00:05.7]} 49. Nd2 {[%clk 0:00:48.9]} 49...
Bxd2 {[%clk 0:00:04.8]} 0-1

[Event "*** Titled Tuesday Blitz"]
[Site "Chess.com"]
[Date "2020.04.14"]
[Round "9"]
[White "hellokostya"]
[Black "kingandqueen2017"]
[Result "1-0"]
[WhiteElo "2498"]
[BlackElo "2338"]
[TimeControl "180+1"]
[EndTime "11:42:56 PDT"]
[Termination "hellokostya won by resignation"]

1. d4 {[%clk 0:03:00.9]} 1... Nf6 {[%clk 0:02:58.1]} 2. c4 {[%clk 0:02:59.8]}
2... e6 {[%clk 0:02:58.3]} 3. Nf3 {[%clk 0:02:58.9]} 3... d5 {[%clk 0:02:58]} 4.
Nc3 {[%clk 0:02:58.4]} 4... Bb4 {[%clk 0:02:56.5]} 5. cxd5 {[%clk 0:02:52.5]}
5... exd5 {[%clk 0:02:56.1]} 6. Bg5 {[%clk 0:02:44]} 6... O-O {[%clk 0:02:53.1]}
7. Qc2 {[%clk 0:02:41.4]} 7... c5 {[%clk 0:02:49.9]} 8. g3 {[%clk 0:02:39.6]}
8... Nc6 {[%clk 0:02:48.5]} 9. Rd1 {[%clk 0:02:11.7]} 9... h6 {[%clk 0:02:42.7]}
10. Bf4 {[%clk 0:02:10.5]} 10... Ne4 {[%clk 0:02:39.7]} 11. Bg2 {[%clk
0:02:05.2]} 11... Qa5 {[%clk 0:02:35.8]} 12. Bd2 {[%clk 0:01:41.7]} 12... Bf5
{[%clk 0:02:17]} 13. a3 {[%clk 0:01:01.8]} 13... Nxc3 {[%clk 0:02:03.2]} 14.
Qxf5 {[%clk 0:01:00.5]} 14... Nxd1 {[%clk 0:02:00.8]} 15. axb4 {[%clk
0:00:59.5]} 15... Nxb4 {[%clk 0:01:56.1]} 16. O-O {[%clk 0:00:39.3]} 16... Nxb2
{[%clk 0:01:55.6]} 17. Ne5 {[%clk 0:00:28.1]} 17... Nc4 {[%clk 0:01:50.3]} 18.
Nxc4 {[%clk 0:00:19.1]} 18... dxc4 {[%clk 0:01:49.4]} 19. Be4 {[%clk 0:00:07.7]}
19... g6 {[%clk 0:01:48.3]} 20. Qe5 {[%clk 0:00:05.6]} 20... Rfe8 {[%clk
0:01:43.8]} 21. Qf4 {[%clk 0:00:04.4]} 21... Qb6 {[%clk 0:01:32.7]} 22. dxc5
{[%clk 0:00:04]} 22... Qxc5 {[%clk 0:01:32.9]} 23. Bxb7 {[%clk 0:00:04.1]} 23...
Rab8 {[%clk 0:01:31.9]} 24. Bf3 {[%clk 0:00:04.3]} 24... c3 {[%clk 0:01:19.1]}
25. Be3 {[%clk 0:00:03.6]} 25... Qe5 {[%clk 0:01:12.6]} 26. Qc4 {[%clk
0:00:03.3]} 26... Qe6 {[%clk 0:01:10]} 27. Qxc3 {[%clk 0:00:03]} 27... Nd5
{[%clk 0:01:10.3]} 28. Bxd5 {[%clk 0:00:02.6]} 28... Qxd5 {[%clk 0:01:09.2]} 29.
Bxh6 {[%clk 0:00:03.2]} 29... Qe5 {[%clk 0:01:07.5]} 30. Qxe5 {[%clk 0:00:03.5]}
30... Rxe5 {[%clk 0:01:07.1]} 31. Bf4 {[%clk 0:00:04.4]} 31... Reb5 {[%clk
0:01:03.7]} 32. Bxb8 {[%clk 0:00:04.3]} 32... Rxb8 {[%clk 0:01:04.5]} 33. Ra1
{[%clk 0:00:04.8]} 33... Rb7 {[%clk 0:01:00.5]} 34. e4 {[%clk 0:00:04.1]} 34...
Kg7 {[%clk 0:01:00.3]} 35. Kg2 {[%clk 0:00:04.5]} 35... g5 {[%clk 0:00:59.7]}
36. Kf3 {[%clk 0:00:04.3]} 36... Kg6 {[%clk 0:00:59]} 37. Kg4 {[%clk 0:00:04.6]}
37... Rb4 {[%clk 0:00:56.6]} 38. Ra6+ {[%clk 0:00:04.1]} 38... f6 {[%clk
0:00:56]} 39. f3 {[%clk 0:00:04.8]} 39... Rb2 {[%clk 0:00:54.4]} 40. h4 {[%clk
0:00:04.4]} 40... gxh4 {[%clk 0:00:54]} 41. gxh4 {[%clk 0:00:04.7]} 41... Rg2+
{[%clk 0:00:53.9]} 42. Kf4 {[%clk 0:00:04.9]} 42... Rh2 {[%clk 0:00:51.9]} 43.
Kg3 {[%clk 0:00:05.3]} 43... Rh1 {[%clk 0:00:51.8]} 44. Rxa7 {[%clk 0:00:05.4]}
44... Rg1+ {[%clk 0:00:50.1]} 45. Kh2 {[%clk 0:00:05.6]} 45... Rf1 {[%clk
0:00:50.3]} 46. Kg2 {[%clk 0:00:05.8]} 46... Re1 {[%clk 0:00:50.4]} 47. Ra6
{[%clk 0:00:05.8]} 47... Re2+ {[%clk 0:00:50.5]} 48. Kg3 {[%clk 0:00:06]} 48...
Re1 {[%clk 0:00:50.5]} 49. Ra2 {[%clk 0:00:05.4]} 49... Rg1+ {[%clk 0:00:50.1]}
50. Kf4 {[%clk 0:00:05.1]} 50... Kh5 {[%clk 0:00:48.7]} 51. Kf5 {[%clk
0:00:04.2]} 51... Rf1 {[%clk 0:00:47.8]} 52. Ra3 {[%clk 0:00:03.4]} 52... Kxh4
{[%clk 0:00:45.3]} 53. Kxf6 {[%clk 0:00:03.9]} 53... Kg3 {[%clk 0:00:46]} 54.
Ke5 {[%clk 0:00:03.7]} 54... Rxf3 {[%clk 0:00:45.9]} 55. Rxf3+ {[%clk
0:00:03.4]} 55... Kxf3 {[%clk 0:00:46.8]} 56. Kf5 {[%clk 0:00:04.2]} 56... Ke3
{[%clk 0:00:46.8]} 57. e5 {[%clk 0:00:05.1]} 57... Kd4 {[%clk 0:00:47.2]} 58.
Kf6 {[%clk 0:00:06]} 1-0

[Event "*** Titled Tuesday Blitz"]
[Site "Chess.com"]
[Date "2020.04.14"]
[Round "9"]
[White "indfraeng"]
[Black "Lion-Al-Messi"]
[Result "1-0"]
[WhiteElo "2257"]
[BlackElo "2440"]
[TimeControl "180+1"]
[EndTime "11:42:58 PDT"]
[Termination "indfraeng won by resignation"]

1. d4 {[%clk 0:03:00.9]} 1... b6 {[%clk 0:02:59.9]} 2. c4 {[%clk 0:02:59.9]}
2... Bb7 {[%clk 0:03:00]} 3. Nc3 {[%clk 0:03:00.2]} 3... Nf6 {[%clk 0:02:59.5]}
4. f3 {[%clk 0:03:00.4]} 4... Nc6 {[%clk 0:02:57.9]} 5. e4 {[%clk 0:03:00]} 5...
e5 {[%clk 0:02:57.9]} 6. d5 {[%clk 0:02:57.4]} 6... Nd4 {[%clk 0:02:57.7]} 7.
Nge2 {[%clk 0:02:53.3]} 7... Bc5 {[%clk 0:02:57.1]} 8. a3 {[%clk 0:02:45.4]}
8... a5 {[%clk 0:02:55.9]} 9. Na4 {[%clk 0:02:38.7]} 9... Nxe2 {[%clk
0:01:54.9]} 10. Nxc5 {[%clk 0:02:28.5]} 10... bxc5 {[%clk 0:01:48]} 11. Bxe2
{[%clk 0:02:27.3]} 11... d6 {[%clk 0:01:34]} 12. O-O {[%clk 0:02:26.2]} 12...
Qd7 {[%clk 0:01:29.9]} 13. Bd2 {[%clk 0:02:24]} 13... a4 {[%clk 0:01:28.1]} 14.
Qc2 {[%clk 0:02:07.9]} 14... Nh5 {[%clk 0:01:21.8]} 15. f4 {[%clk 0:01:59.9]}
15... Nxf4 {[%clk 0:01:20.4]} 16. Bxf4 {[%clk 0:02:00]} 16... exf4 {[%clk
0:01:21.3]} 17. Rxf4 {[%clk 0:02:00.5]} 17... f6 {[%clk 0:01:21.5]} 18. Bh5+
{[%clk 0:01:58.5]} 18... g6 {[%clk 0:01:20.1]} 19. Bg4 {[%clk 0:01:58.4]} 19...
Qe7 {[%clk 0:01:19.7]} 20. Raf1 {[%clk 0:01:57.9]} 20... O-O {[%clk 0:01:18.8]}
21. Be6+ {[%clk 0:01:55.8]} 21... Kg7 {[%clk 0:01:18.6]} 22. Qc3 {[%clk
0:01:53.7]} 22... Bc8 {[%clk 0:01:07.5]} 23. g4 {[%clk 0:01:46.3]} 23... Bxe6
{[%clk 0:01:06.8]} 24. g5 {[%clk 0:01:42.6]} 24... Qd7 {[%clk 0:00:22.4]} 25.
Rxf6 {[%clk 0:01:30.6]} 25... Rxf6 {[%clk 0:00:17.9]} 26. Rxf6 {[%clk
0:01:04.8]} 26... Kg8 {[%clk 0:00:13.7]} 27. dxe6 {[%clk 0:00:57]} 27... Qe7
{[%clk 0:00:10.9]} 28. h4 {[%clk 0:00:51.5]} 28... Rf8 {[%clk 0:00:09]} 29. e5
{[%clk 0:00:49.6]} 29... Rxf6 {[%clk 0:00:04.9]} 30. exf6 {[%clk 0:00:41]} 30...
Qxe6 {[%clk 0:00:05.3]} 31. Qf3 {[%clk 0:00:35.9]} 31... Qe1+ {[%clk 0:00:03.6]}
32. Kg2 {[%clk 0:00:35.9]} 32... Qd2+ {[%clk 0:00:03.5]} 33. Kg3 {[%clk
0:00:36]} 33... Qe1+ {[%clk 0:00:03]} 34. Kg4 {[%clk 0:00:35.3]} 34... Qe6+
{[%clk 0:00:02.5]} 35. Kg3 {[%clk 0:00:32.2]} 35... Qxc4 {[%clk 0:00:02.6]} 36.
Qa8+ {[%clk 0:00:30.2]} 36... Kf7 {[%clk 0:00:02.4]} 37. Qh8 {[%clk 0:00:29.4]}
37... Qd3+ {[%clk 0:00:01.7]} 38. Kf4 {[%clk 0:00:29.7]} 38... Qd4+ {[%clk
0:00:01.6]} 39. Kf3 {[%clk 0:00:30.6]} 39... Qd5+ {[%clk 0:00:01.8]} 40. Kg4
{[%clk 0:00:31.5]} 40... Qe4+ {[%clk 0:00:01.9]} 41. Kg3 {[%clk 0:00:31]} 41...
Ke6 {[%clk 0:00:02.2]} 42. Qe8+ {[%clk 0:00:29.8]} 42... Kf5 {[%clk 0:00:02.2]}
43. Qxe4+ {[%clk 0:00:29.8]} 43... Kxe4 {[%clk 0:00:03.1]} 44. f7 {[%clk
0:00:30.5]} 1-0

[Event "*** Titled Tuesday Blitz"]
[Site "Chess.com"]
[Date "2020.04.14"]
[Round "9"]
[White "zivicd"]
[Black "RodinMihail"]
[Result "0-1"]
[WhiteElo "2201"]
[BlackElo "2468"]
[TimeControl "180+1"]
[EndTime "11:42:58 PDT"]
[Termination "RodinMihail won by resignation"]

1. e4 {[%clk 0:02:58.6]} 1... e5 {[%clk 0:02:59.4]} 2. Nf3 {[%clk 0:02:57.7]}
2... Nc6 {[%clk 0:02:56]} 3. Bc4 {[%clk 0:02:56.3]} 3... Bc5 {[%clk 0:02:55.7]}
4. c3 {[%clk 0:02:55.8]} 4... Nf6 {[%clk 0:02:55.7]} 5. d3 {[%clk 0:02:55.8]}
5... a6 {[%clk 0:02:55.5]} 6. Bb3 {[%clk 0:02:55]} 6... Ba7 {[%clk 0:02:55.9]}
7. O-O {[%clk 0:02:52.3]} 7... O-O {[%clk 0:02:55.9]} 8. Be3 {[%clk 0:02:43.3]}
8... d6 {[%clk 0:02:49.6]} 9. h3 {[%clk 0:02:42.4]} 9... Qe7 {[%clk 0:02:44.8]}
10. Nbd2 {[%clk 0:02:39.3]} 10... Nh5 {[%clk 0:02:45.2]} 11. Nxe5 {[%clk
0:02:21.7]} 11... Nxe5 {[%clk 0:02:16.3]} 12. Qxh5 {[%clk 0:02:01.8]} 12... Nxd3
{[%clk 0:02:16.6]} 13. Bxa7 {[%clk 0:01:46.3]} 13... Rxa7 {[%clk 0:02:15.5]} 14.
Qf3 {[%clk 0:01:30.9]} 14... Ne5 {[%clk 0:01:52.9]} 15. Qe3 {[%clk 0:01:30.8]}
15... Ra8 {[%clk 0:01:52.1]} 16. f4 {[%clk 0:01:30.2]} 16... Nc6 {[%clk
0:01:50.8]} 17. Rae1 {[%clk 0:01:29.6]} 17... Kh8 {[%clk 0:01:49.4]} 18. Nf3
{[%clk 0:01:12.7]} 18... Be6 {[%clk 0:01:44.3]} 19. Bc2 {[%clk 0:01:12.1]} 19...
Rae8 {[%clk 0:01:34.3]} 20. Ng5 {[%clk 0:01:01.2]} 20... Bc4 {[%clk 0:01:28.7]}
21. Bd3 {[%clk 0:00:44.4]} 21... Bxd3 {[%clk 0:01:27.7]} 22. Qxd3 {[%clk
0:00:44.2]} 22... f6 {[%clk 0:01:28.2]} 23. Nf3 {[%clk 0:00:39.4]} 23... Qf7
{[%clk 0:01:25.5]} 24. b3 {[%clk 0:00:38.7]} 24... Qh5 {[%clk 0:01:25]} 25. Kh2
{[%clk 0:00:37.1]} 25... Re7 {[%clk 0:01:21.9]} 26. g4 {[%clk 0:00:37.1]} 26...
Qf7 {[%clk 0:01:18.8]} 27. Nh4 {[%clk 0:00:36.3]} 27... g6 {[%clk 0:01:16.1]}
28. Nf3 {[%clk 0:00:33.6]} 28... Rfe8 {[%clk 0:01:15.8]} 29. Kg2 {[%clk
0:00:29.5]} 29... Re6 {[%clk 0:01:12.4]} 30. Qd5 {[%clk 0:00:18.4]} 30... Qe7
{[%clk 0:01:08]} 31. Qd3 {[%clk 0:00:17.4]} 31... Rxe4 {[%clk 0:01:06.3]} 32.
Qd2 {[%clk 0:00:16.3]} 32... Re2+ {[%clk 0:01:02.8]} 33. Rxe2 {[%clk 0:00:14.8]}
33... Qxe2+ {[%clk 0:01:02.6]} 34. Rf2 {[%clk 0:00:15.1]} 34... Qxd2 {[%clk
0:01:00.1]} 35. Rxd2 {[%clk 0:00:16]} 35... Re3 {[%clk 0:00:59.6]} 36. Rc2
{[%clk 0:00:15.9]} 36... Re4 {[%clk 0:00:54.6]} 37. Kg3 {[%clk 0:00:15.5]} 37...
Ne7 {[%clk 0:00:54.7]} 38. Rd2 {[%clk 0:00:14.6]} 38... Re3 {[%clk 0:00:53.6]}
39. Rc2 {[%clk 0:00:13.7]} 39... Nd5 {[%clk 0:00:52.5]} 40. Kf2 {[%clk
0:00:13.8]} 40... Rxc3 {[%clk 0:00:52]} 41. Rxc3 {[%clk 0:00:13.3]} 41... Nxc3
{[%clk 0:00:52]} 42. a3 {[%clk 0:00:13.5]} 42... Nd5 {[%clk 0:00:49.5]} 43. f5
{[%clk 0:00:12.8]} 43... gxf5 {[%clk 0:00:47.5]} 44. gxf5 {[%clk 0:00:13.1]}
44... c5 {[%clk 0:00:45.1]} 45. h4 {[%clk 0:00:13.1]} 45... Ne7 {[%clk
0:00:43.1]} 46. Nd2 {[%clk 0:00:11.5]} 46... Nxf5 {[%clk 0:00:43.1]} 47. Ne4
{[%clk 0:00:11.2]} 47... Kg7 {[%clk 0:00:41.8]} 48. h5 {[%clk 0:00:11.6]} 48...
b6 {[%clk 0:00:41.8]} 49. b4 {[%clk 0:00:11.3]} 49... d5 {[%clk 0:00:41.6]} 50.
bxc5 {[%clk 0:00:08.9]} 50... dxe4 {[%clk 0:00:40]} 51. cxb6 {[%clk 0:00:09]}
51... Nd6 {[%clk 0:00:40]} 0-1